bitfinex-derivatives/quotes_BTCF0:USTF0_20241009
["timestamp","ask_amount","ask_price","bid_price","bid_amount"]
[1728445986879,0.73468039,62409.0,62408.0,0.12]
[1728445988185,0.73470989,62409.0,62408.0,0.12]
[1728445988773,0.37390989,62409.0,62408.0,0.12]
[1728445989073,0.73470989,62409.0,62408.0,0.12]
[1728445989473,0.37390989,62409.0,62408.0,0.12]
[1728445989677,0.73470989,62409.0,62408.0,0.12]
[1728445989882,0.22961173,62409.0,62408.0,0.12]
[1728445990083,0.447952,62409.0,62408.0,0.12]
[1728445992880,0.087152,62409.0,62408.0,0.12]
[1728445993081,0.447952,62409.0,62408.0,0.12]
[1728445997287,0.53636162,62409.0,62408.0,0.12]
[1728445997687,0.53636162,62409.0,62407.0,0.09469983]
[1728445997688,0.17556162,62409.0,62407.0,0.09469983]
[1728445997884,0.08840962,62408.0,62407.0,0.09469983]
[1728445998084,0.13590864,62408.0,62407.0,0.09469983]
[1728445998490,0.08840957,62408.0,62407.0,0.09469983]
[1728445999494,0.09040957,62408.0,62407.0,0.09469983]
[1728446000189,0.09040957,62408.0,62407.0,0.21469983]
[1728446000392,0.09040957,62408.0,62407.0,0.09469983]
[1728446000590,0.09040957,62408.0,62407.0,0.21469983]
[1728446001291,0.09340957,62408.0,62407.0,0.21469983]
[1728446005196,0.005,62408.0,62407.0,0.21469983]
[1728446012299,0.04634672,62408.0,62407.0,0.21469983]
[1728446012501,0.005,62408.0,62407.0,0.21469983]
[1728446012701,0.09435221,62408.0,62407.0,0.21469983]
[1728446020311,0.005,62408.0,62407.0,0.21469983]
[1728446027813,0.005,62408.0,62407.0,0.09469983]
[1728446028014,0.005,62408.0,62407.0,0.21469983]
[1728446034623,0.005,62408.0,62407.0,0.15838529]
[1728446034922,0.005,62408.0,62407.0,0.27838529]
[1728446035326,0.09449791,62408.0,62407.0,0.21469983]
[1728446042236,0.005,62408.0,62407.0,0.21469983]
[1728446050555,0.09450445,62408.0,62407.0,0.21469983]
[1728446051247,0.09450373,62408.0,62407.0,0.21469983]
[1728446057066,0.14435553,62413.0,62407.0,0.61526583]
[1728446057259,0.0037,62416.0,62412.0,0.12]
[1728446057459,0.0037,62416.0,62405.0,0.3608]
[1728446057460,0.0149,62419.0,62415.0,0.12]
[1728446057766,0.080138,62420.0,62418.0,0.12]
[1728446059762,0.080141,62419.0,62418.0,0.004]
[1728446060263,0.084141,62419.0,62418.0,0.004]
[1728446060566,0.118341,62419.0,62418.0,0.004]
[1728446060863,0.114341,62419.0,62418.0,0.008]
[1728446061463,0.114341,62419.0,62418.0,0.004]
[1728446061657,0.115341,62419.0,62418.0,0.008]
[1728446062451,0.115341,62419.0,62418.0,0.009]
[1728446070566,0.476141,62419.0,62418.0,0.009]
[1728446071565,0.441941,62419.0,62418.0,0.129]
[1728446072366,0.67960243,62419.0,62418.0,0.129]
[1728446072767,0.72625538,62419.0,62418.0,0.129]
[1728446073167,0.58189985,62419.0,62418.0,0.129]
[1728446074271,0.58689985,62419.0,62418.0,0.125]
[1728446074475,0.53377575,62419.0,62418.0,0.125]
[1728446074776,0.53277575,62419.0,62418.0,0.12]
[1728446074966,0.53277575,62419.0,62418.0,0.121]
[1728446074967,0.53977575,62419.0,62418.0,0.121]
[1728446075766,0.4921228,62419.0,62418.0,0.121]
[1728446075975,0.53908173,62419.0,62418.0,0.121]
[1728446077165,0.53908173,62419.0,62418.0,0.235641]
[1728446077166,0.09814073,62419.0,62418.0,0.235641]
[1728446080376,0.011,62419.0,62418.0,0.235641]
[1728446081479,0.011,62419.0,62418.0,0.28337875]
[1728446081982,0.011,62419.0,62418.0,0.235641]
[1728446087589,0.0987124,62419.0,62418.0,0.235641]
[1728446090975,0.1995695,62419.0,62418.0,0.235641]
[1728446091277,0.15244502,62419.0,62418.0,0.235641]
[1728446092594,0.29680055,62419.0,62418.0,0.1554489]
[1728446094378,0.15244502,62419.0,62418.0,0.1554489]
[1728446095487,0.011,62419.0,62418.0,0.20317945]
[1728446098477,0.011,62419.0,62418.0,0.1554489]
[1728446102779,0.09738483,62419.0,62418.0,0.1554489]
[1728446110479,0.011,62419.0,62418.0,0.1554489]
[1728446112903,0.011,62419.0,62418.0,0.0354489]
[1728446113197,0.011,62419.0,62418.0,0.1554489]
[1728446125206,0.0149,62424.0,62423.0,0.080134]
[1728446125505,0.0112,62427.0,62426.0,0.08013]
[1728446125806,0.0112,62427.0,62426.0,0.12]
[1728446125807,0.04060468,62427.0,62426.0,0.12]
[1728446126198,0.04060468,62427.0,62426.0,0.20013]
[1728446127109,0.04160468,62427.0,62426.0,0.20613]
[1728446127999,0.04160468,62427.0,62426.0,0.22458258]
[1728446128505,0.04160468,62427.0,62426.0,0.22958258]
[1728446130904,0.04160468,62427.0,62426.0,0.02945258]
[1728446131106,0.12173368,62427.0,62426.0,0.02945258]
[1728446131311,0.16886747,62427.0,62426.0,0.02945258]
[1728446131807,0.16886747,62427.0,62426.0,0.01494397]
[1728446131808,0.38275334,62427.0,62426.0,0.01494397]
[1728446132012,0.22239957,62427.0,62426.0,0.01494397]
[1728446132508,0.080138,62420.0,62416.0,0.0037]
[1728446132703,0.080138,62420.0,62414.0,0.25150325]
[1728446132704,0.111639,62419.0,62414.0,0.25150325]
[1728446132902,0.111639,62419.0,62414.0,0.15031883]
[1728446133105,0.111639,62419.0,62416.0,0.12]
[1728446134809,0.115639,62419.0,62418.0,0.12]
[1728446135510,0.080145,62415.0,62414.0,0.01881558]
[1728446135712,0.0355,62419.0,62411.0,0.3608]
[1728446135713,0.0336,62418.0,62411.0,0.3608]
[1728446136014,0.080147,62413.0,62412.0,0.12]
[1728446137106,0.48308,62417.0,62411.0,0.01977563]
[1728446137307,0.440948,62412.0,62411.0,0.01977563]
[1728446137509,0.440948,62412.0,62411.0,0.13977563]
[1728446138209,0.440948,62412.0,62411.0,0.01977563]
[1728446138516,0.444948,62412.0,62411.0,0.01977563]
[1728446139303,0.080152,62409.0,62401.0,0.0037]
[1728446139504,0.080152,62409.0,62407.0,0.12]
[1728446140603,0.081152,62409.0,62407.0,0.12]
[1728446141603,0.082152,62409.0,62407.0,0.12]
[1728446142614,0.083152,62409.0,62407.0,0.12]
[1728446143917,0.082152,62409.0,62407.0,0.12]
[1728446144107,0.084152,62409.0,62407.0,0.12]
[1728446144915,0.084152,62409.0,62407.0,0.13835831]
[1728446147413,0.084152,62409.0,62407.0,0.12]
[1728446150618,0.004,62409.0,62404.0,0.04773163]
[1728446150817,0.080156,62406.0,62405.0,0.12]
[1728446151015,0.080159,62404.0,62402.0,0.01854665]
[1728446151212,0.3608,62405.0,62399.0,0.07913163]
[1728446151525,0.080163,62401.0,62399.0,0.0314]
[1728446151725,0.080164,62400.0,62399.0,0.0314]
[1728446152019,0.440964,62400.0,62399.0,0.04946101]
[1728446152213,0.440964,62400.0,62399.0,0.0314]
[1728446152518,0.080166,62399.0,62396.0,0.12]
[1728446152722,0.080166,62399.0,62396.0,0.13815703]
[1728446153717,0.3618,62400.0,62396.0,0.13815703]
[1728446154022,0.080167,62398.0,62396.0,0.13815703]
[1728446154222,0.080167,62398.0,62396.0,0.14715703]
[1728446154622,0.080167,62398.0,62396.0,0.15515703]
[1728446155419,0.080167,62398.0,62396.0,0.017]
[1728446155825,0.080168,62397.0,62396.0,0.017]
[1728446156628,0.200168,62397.0,62396.0,0.008]
[1728446156823,0.200168,62397.0,62396.0,0.017]
[1728446157221,0.201168,62397.0,62396.0,0.017]
[1728446157423,0.201168,62397.0,62396.0,0.008]
[1728446157733,0.202168,62397.0,62396.0,0.017]
[1728446159218,0.082168,62397.0,62396.0,0.137]
[1728446164133,0.002,62397.0,62396.0,0.137]
[1728446165627,0.002,62397.0,62396.0,0.18474528]
[1728446166642,0.002,62397.0,62396.0,0.18475808]
[1728446166844,0.002,62397.0,62396.0,0.217169]
[1728446167142,0.0149,62405.0,62402.0,0.080161]
[1728446167344,0.3608,62407.0,62404.0,0.12]
[1728446167648,0.3608,62407.0,62406.0,0.12]
[1728446169856,0.3618,62407.0,62406.0,0.12]
[1728446170547,0.3628,62407.0,62406.0,0.12]
[1728446171548,0.3628,62407.0,62406.0,0.26379818]
[1728446173646,0.002,62407.0,62406.0,0.26379818]
[1728446173842,0.3628,62407.0,62406.0,0.26379818]
[1728446175951,0.002,62407.0,62406.0,0.26379818]
[1728446176152,0.3628,62407.0,62406.0,0.26379818]
[1728446177568,0.3628,62407.0,62406.0,0.200156]
[1728446178556,0.002,62407.0,62406.0,0.200156]
[1728446187868,0.002,62407.0,62406.0,0.66478951]
[1728446190480,0.002,62407.0,62406.0,0.76039559]
[1728446191067,0.002,62407.0,62406.0,0.7602998]
[1728446191864,0.002,62407.0,62406.0,0.66469372]
[1728446192076,0.002,62407.0,62406.0,0.7602998]
[1728446192676,0.0024044,62413.0,62412.0,0.080148]
[1728446192975,0.04250966,62413.0,62412.0,0.200148]
[1728446193981,0.04250966,62413.0,62412.0,0.201148]
[1728446193982,0.04950966,62413.0,62412.0,0.201148]
[1728446194175,0.04950966,62413.0,62412.0,0.561948]
[1728446194476,0.04950966,62413.0,62412.0,0.562948]
[1728446194477,0.05650966,62413.0,62412.0,0.562948]
[1728446195179,0.04950966,62413.0,62412.0,0.562948]
[1728446195380,0.04950966,62413.0,62412.0,0.561948]
[1728446195381,0.04250966,62413.0,62412.0,0.561948]
[1728446195774,0.0024044,62413.0,62412.0,0.561948]
[1728446195976,0.04277479,62413.0,62412.0,0.561948]
[1728446199083,0.0024044,62413.0,62412.0,0.561948]
[1728446199783,0.0024044,62413.0,62412.0,0.201148]
[1728446201379,0.3757,62420.0,62415.0,0.080144]
[1728446201580,0.3608,62420.0,62419.0,0.12]
[1728446202675,0.3638,62420.0,62419.0,0.12]
[1728446202876,0.3708,62420.0,62419.0,0.121]
[1728446203388,0.3748,62420.0,62419.0,0.122]
[1728446203589,0.454938,62420.0,62419.0,0.122]
[1728446205888,0.094138,62420.0,62419.0,0.122]
[1728446206282,0.454938,62420.0,62419.0,0.122]
[1728446207781,0.454938,62420.0,62419.0,0.14485078]
[1728446210083,0.454938,62420.0,62419.0,0.22498978]
[1728446215398,0.094138,62420.0,62419.0,0.22498978]
[1728446215598,0.23494399,62420.0,62419.0,0.22498978]
[1728446216900,0.23494399,62420.0,62419.0,0.10498978]
[1728446217291,0.23494399,62420.0,62419.0,0.22498978]
[1728446217493,0.23494399,62420.0,62419.0,0.14485078]
[1728446218796,0.23494399,62420.0,62419.0,0.002]
[1728446219097,0.23494399,62420.0,62399.0,0.3688]
[1728446219098,0.33688773,62420.0,62410.0,0.12]
[1728446219302,0.23308773,62419.0,62414.0,0.12]
[1728446219490,0.20288773,62418.0,62414.0,0.12]
[1728446219695,0.20288773,62417.0,62414.0,0.12]
[1728446220002,0.080145,62415.0,62414.0,0.12]
[1728446220299,0.28303273,62415.0,62414.0,0.12]
[1728446220803,0.14222674,62415.0,62414.0,0.12]
[1728446221000,0.21820513,62415.0,62414.0,0.12]
[1728446221505,0.35050128,62415.0,62414.0,0.12]
[1728446221702,0.45860306,62415.0,62414.0,0.12]
[1728446221905,0.22220513,62415.0,62414.0,0.12]
[1728446222700,0.084145,62415.0,62414.0,0.12]
[1728446224814,0.444945,62415.0,62414.0,0.12]
[1728446230706,0.58260162,62415.0,62414.0,0.12]
[1728446231723,0.22180162,62415.0,62414.0,0.12]
[1728446231923,0.53035137,62415.0,62414.0,0.12]
[1728446235229,0.53033553,62415.0,62414.0,0.12]
[1728446237822,0.084145,62415.0,62414.0,0.12]
[1728446238024,0.444945,62415.0,62414.0,0.12]
[1728446243720,0.084145,62415.0,62414.0,0.12]
[1728446243921,0.3648,62415.0,62414.0,0.200146]
[1728446244130,0.3648,62415.0,62414.0,0.24803056]
[1728446244636,0.3648,62415.0,62414.0,0.28123056]
[1728446244821,0.3648,62415.0,62414.0,0.233346]
[1728446245028,0.3608,62422.0,62421.0,0.080137]
[1728446245222,0.3608,62428.0,62419.0,0.16786974]
[1728446245432,0.3608,62428.0,62427.0,0.12]
[1728446246022,0.3608,62428.0,62427.0,0.1532]
[1728446246837,0.3608,62428.0,62427.0,0.1582]
[1728446247533,0.3608,62428.0,62427.0,0.1622]
[1728446248630,0.3608,62428.0,62427.0,0.242329]
[1728446252132,0.080126,62430.0,62427.0,0.242329]
[1728446252334,0.080126,62430.0,62428.0,0.080127]
[1728446252739,0.14126602,62429.0,62427.0,0.16214806]
[1728446252931,0.15992851,62429.0,62428.0,0.200127]
[1728446253131,0.20048559,62429.0,62428.0,0.200127]
[1728446253342,0.15992851,62429.0,62428.0,0.200127]
[1728446253848,0.30119453,62429.0,62428.0,0.200127]
[1728446254343,0.14126602,62429.0,62428.0,0.200127]
[1728446255137,0.14126602,62429.0,62428.0,0.203127]
[1728446255340,0.09255,62429.0,62428.0,0.207127]
[1728446255644,0.09896873,62429.0,62428.0,0.207127]
[1728446255946,0.138825,62429.0,62428.0,0.207127]
[1728446256842,0.14382937,62429.0,62428.0,0.207127]
[1728446257643,0.19010437,62429.0,62428.0,0.207127]
[1728446257849,0.28265437,62429.0,62428.0,0.207127]
[1728446259150,0.138825,62429.0,62428.0,0.087127]
[1728446259341,0.138825,62429.0,62428.0,0.207127]
[1728446259540,0.28265437,62429.0,62428.0,0.207127]
[1728446259741,0.14382937,62429.0,62428.0,0.207127]
[1728446259940,0.26920084,62431.0,62428.0,0.207127]
[1728446260946,0.26920084,62431.0,62428.0,0.087127]
[1728446261251,0.26920084,62431.0,62430.0,0.12]
[1728446262154,0.18907684,62431.0,62430.0,0.12]
[1728446262350,0.18907684,62431.0,62430.0,0.201125]
[1728446262747,0.18907684,62431.0,62430.0,0.203125]
[1728446264855,0.3608,62434.0,62432.0,0.080122]
[1728446265045,0.3608,62434.0,62433.0,0.1507]
[1728446265445,0.3608,62434.0,62433.0,0.230821]
[1728446266047,0.3628,62434.0,62433.0,0.230821]
[1728446266246,0.3638,62434.0,62433.0,0.230821]
[1728446267753,0.40363828,62434.0,62433.0,0.15064307]
[1728446267953,0.50256234,62434.0,62433.0,0.15859049]
[1728446268853,0.64642649,62434.0,62433.0,0.15859049]
[1728446269856,0.50256234,62434.0,62433.0,0.15859049]
[1728446270265,0.49677077,62434.0,62433.0,0.15859049]
[1728446270561,0.64063492,62434.0,62433.0,0.15859049]
[1728446270760,0.49677077,62434.0,62433.0,0.15859049]
[1728446271358,0.64063492,62434.0,62433.0,0.15859049]
[1728446271948,0.49677077,62434.0,62433.0,0.15859049]
[1728446272158,0.64063492,62434.0,62433.0,0.15859049]
[1728446272362,0.27983492,62434.0,62433.0,0.15859049]
[1728446272555,0.13597077,62434.0,62433.0,0.15859049]
[1728446272861,0.08549913,62434.0,62433.0,0.15859049]
[1728446273746,0.08349913,62434.0,62433.0,0.15859049]
[1728446273954,0.08449913,62434.0,62433.0,0.15859049]
[1728446274360,0.08349913,62434.0,62433.0,0.15859049]
[1728446274661,0.08249913,62434.0,62433.0,0.16259049]
[1728446274853,0.372,62440.0,62434.0,0.080119]
[1728446275158,0.3608,62440.0,62437.0,0.12]
[1728446277355,0.3618,62440.0,62437.0,0.12]
[1728446277549,0.3638,62440.0,62437.0,0.12]
[1728446278057,0.443913,62440.0,62437.0,0.12]
[1728446278557,0.3638,62440.0,62437.0,0.12]
[1728446278967,0.080115,62438.0,62437.0,0.12]
[1728446280966,0.12,62438.0,62432.0,0.080122]
[1728446281155,0.3608,62434.0,62432.0,0.080122]
[1728446281654,0.3608,62434.0,62431.0,0.12]
[1728446281655,0.44092,62434.0,62431.0,0.12]
[1728446281862,0.44092,62434.0,62431.0,0.1422035]
[1728446282451,0.3608,62434.0,62432.0,0.005]
[1728446282657,0.372,62440.0,62432.0,0.005]
[1728446282850,0.372,62440.0,62435.0,0.080118]
[1728446282851,0.13467588,62439.0,62435.0,0.080118]
[1728446283060,0.03866507,62438.0,62432.0,0.005]
[1728446283359,0.16367403,62437.0,62433.0,0.12]
[1728446283557,0.08355703,62436.0,62433.0,0.12]
[1728446283761,0.04489196,62435.0,62433.0,0.12]
[1728446283958,0.04489196,62434.0,62433.0,0.12]
[1728446284752,0.04489196,62434.0,62433.0,0.124]
[1728446284952,0.40569196,62434.0,62433.0,0.124]
[1728446285361,0.40569196,62434.0,62433.0,0.12]
[1728446285561,0.40569196,62434.0,62433.0,0.128]
[1728446287063,0.40569196,62434.0,62433.0,0.129]
[1728446287857,0.04489196,62434.0,62433.0,0.129]
[1728446289663,0.40569196,62434.0,62433.0,0.009]
[1728446289866,0.3608,62434.0,62433.0,0.009]
[1728446293458,0.17631619,62438.0,62436.0,0.080117]
[1728446293660,0.17631619,62438.0,62437.0,0.1532]
[1728446295057,0.3608,62439.0,62437.0,0.1532]
[1728446295563,0.3608,62439.0,62438.0,0.0307]
[1728446297161,0.3618,62439.0,62438.0,0.0307]
[1728446297758,0.3618,62439.0,62438.0,0.1735733]
[1728446297759,0.39979522,62439.0,62438.0,0.1735733]
[1728446300669,0.3618,62439.0,62438.0,0.1735733]
[1728446300969,0.39980054,62439.0,62438.0,0.1735733]
[1728446304968,0.55367724,62439.0,62438.0,0.1428733]
[1728446305773,0.5538575,62439.0,62438.0,0.1428733]
[1728446306872,0.080115,62438.0,62433.0,0.080121]
[1728446307174,0.080119,62435.0,62432.0,0.12]
[1728446307375,0.29276866,62434.0,62432.0,0.12]
[1728446307576,0.13260035,62433.0,62432.0,0.12]
[1728446307774,0.13260035,62433.0,62432.0,0.14244872]
[1728446308272,0.29276866,62433.0,62432.0,0.14244872]
[1728446308579,0.29276866,62433.0,62432.0,0.14644872]
[1728446308778,0.13260035,62433.0,62432.0,0.14644872]
[1728446309075,0.13360035,62433.0,62432.0,0.14844872]
[1728446309277,0.29376866,62433.0,62432.0,0.14844872]
[1728446309668,0.29376866,62433.0,62432.0,0.15344872]
[1728446310068,0.13360035,62433.0,62432.0,0.15344872]
[1728446310674,0.24748833,62433.0,62432.0,0.15344872]
[1728446310870,0.19830375,62433.0,62432.0,0.15344872]
[1728446311178,0.29060432,62433.0,62432.0,0.15344872]
[1728446311968,0.13043601,62433.0,62432.0,0.15344872]
[1728446312970,0.001,62433.0,62432.0,0.15344872]
[1728446313181,0.11825938,62433.0,62432.0,0.011]
[1728446314779,0.081121,62433.0,62432.0,0.011]
[1728446316376,0.11819708,62433.0,62432.0,0.011]
[1728446317769,0.11827487,62433.0,62432.0,0.011]
[1728446320079,0.26872067,62433.0,62428.0,0.00433094]
[1728446320275,0.26872067,62433.0,62428.0,0.12433094]
[1728446320276,0.3608,62429.0,62428.0,0.12433094]
[1728446320477,0.54840879,62429.0,62428.0,0.12433094]
[1728446320686,0.54840879,62429.0,62428.0,0.14647936]
[1728446322082,0.55840879,62429.0,62428.0,0.14747936]
[1728446322281,0.56840879,62429.0,62428.0,0.14847936]
[1728446324877,0.51029836,62429.0,62428.0,0.14847936]
[1728446325288,0.50746355,62429.0,62428.0,0.14847936]
[1728446326285,0.5074715,62429.0,62428.0,0.14847936]
[1728446326781,0.66753718,62429.0,62428.0,0.14847936]
[1728446327981,0.3808,62429.0,62428.0,0.14847936]
[1728446328188,0.3808,62429.0,62428.0,0.22860736]
[1728446330081,0.02,62429.0,62428.0,0.22860736]
[1728446343093,0.2159367,62429.0,62428.0,0.10427642]
[1728446343683,0.14670511,62429.0,62428.0,0.10427642]
[1728446344885,0.14670511,62429.0,62428.0,0.22427642]
[1728446348391,0.1451084,62429.0,62428.0,0.22427642]
[1728446350087,0.02,62429.0,62428.0,0.22427642]
[1728446351393,0.02,62429.0,62428.0,0.14414842]
[1728446351591,0.100127,62429.0,62428.0,0.02414842]
[1728446356002,0.100127,62429.0,62428.0,0.14414842]
[1728446357802,0.3808,62429.0,62428.0,0.14414842]
[1728446358002,0.56325524,62429.0,62428.0,0.08273064]
[1728446358207,0.56325524,62429.0,62427.0,0.080129]
[1728446358404,0.30133366,62428.0,62427.0,0.080129]
[1728446359001,0.12498013,62428.0,62427.0,0.080129]
[1728446359692,0.30133366,62428.0,62427.0,0.080129]
[1728446359894,0.30133366,62428.0,62427.0,0.200129]
[1728446360199,0.12498013,62428.0,62427.0,0.201129]
[1728446360699,0.13398013,62428.0,62427.0,0.201129]
[1728446360903,0.13398013,62428.0,62427.0,0.200129]
[1728446361107,0.14298013,62428.0,62427.0,0.22436727]
[1728446361804,0.30330062,62428.0,62427.0,0.22436727]
[1728446363401,0.14298013,62428.0,62427.0,0.22436727]
[1728446364000,0.30330299,62428.0,62427.0,0.22436727]
[1728446364501,0.14298013,62428.0,62427.0,0.22436727]
[1728446365097,0.018,62428.0,62427.0,0.28817077]
[1728446365998,0.018,62428.0,62427.0,0.22436727]
[1728446366398,0.018,62428.0,62427.0,0.28819347]
[1728446366598,0.018,62428.0,62427.0,0.22436727]
[1728446367199,0.018,62428.0,62427.0,0.28819296]
[1728446368502,0.018,62428.0,62427.0,0.22436727]
[1728446368903,0.018,62428.0,62427.0,0.28819337]
[1728446369909,0.018,62428.0,62427.0,0.20806437]
[1728446370505,0.018,62428.0,62427.0,0.14423827]
[1728446370704,0.018,62428.0,62427.0,0.20806407]
[1728446371216,0.016,62428.0,62427.0,0.20806407]
[1728446371713,0.007,62428.0,62427.0,0.20806407]
[1728446371906,0.007,62428.0,62427.0,0.20906407]
[1728446371907,0.014,62428.0,62427.0,0.20906407]
[1728446372116,0.014,62428.0,62427.0,0.14523827]
[1728446372313,0.014,62428.0,62427.0,0.20906041]
[1728446373009,0.33150321,62428.0,62427.0,0.0650531]
[1728446373211,0.37154211,62428.0,62427.0,0.0650531]
[1728446373516,0.19518858,62428.0,62427.0,0.0650531]
[1728446373913,0.19518858,62428.0,62427.0,0.02523827]
[1728446374807,0.37155957,62428.0,62427.0,0.02523827]
[1728446375916,0.31408309,62428.0,62427.0,0.02523827]
[1728446376217,0.08852407,62428.0,62427.0,0.02523827]
[1728446380116,0.014,62428.0,62427.0,0.02523827]
[1728446389422,0.014,62428.0,62427.0,0.07311711]
[1728446389630,0.014,62428.0,62427.0,0.02523827]
[1728446390724,0.014,62428.0,62427.0,0.07311711]
[1728446390926,0.014,62428.0,62427.0,0.02523827]
[1728446395334,0.13667091,62428.0,62427.0,0.002]
[1728446400429,0.1941509,62428.0,62425.0,0.00516312]
[1728446400628,0.4808,62426.0,62419.0,0.0037]
[1728446400829,0.3608,62420.0,62414.0,0.1237]
[1728446401033,0.17631685,62415.0,62414.0,0.12]
[1728446401335,0.17930797,62415.0,62414.0,0.12]
[1728446401523,0.20969116,62415.0,62414.0,0.12]
[1728446401729,0.65893789,62415.0,62411.0,0.12]
[1728446401929,0.29813789,62414.0,62411.0,0.12]
[1728446402130,0.03337667,62413.0,62411.0,0.12]
[1728446402435,0.03337667,62412.0,62411.0,0.12]
[1728446402749,0.1218234,62412.0,62411.0,0.12]
[1728446402934,0.16018495,62412.0,62411.0,0.12]
[1728446403327,0.001,62413.0,62411.0,0.125]
[1728446403541,0.001,62413.0,62412.0,0.06379193]
[1728446403940,0.001,62413.0,62411.0,0.18879193]
[1728446405044,0.3608,62415.0,62411.0,0.18379193]
[1728446405342,0.3608,62415.0,62414.0,0.04782106]
[1728446405538,0.3608,62415.0,62414.0,0.16782106]
[1728446406332,0.3608,62415.0,62414.0,0.12]
[1728446406532,0.3618,62415.0,62414.0,0.125]
[1728446408037,0.3618,62415.0,62414.0,0.129]
[1728446411835,0.001,62415.0,62414.0,0.209146]
[1728446418147,0.001,62415.0,62414.0,0.27293793]
[1728446418556,0.001,62415.0,62414.0,0.209146]
[1728446419755,0.3618,62415.0,62414.0,0.27290595]
[1728446420651,0.3618,62415.0,62414.0,0.209146]
[1728446422846,0.001,62415.0,62414.0,0.209146]
[1728446426459,0.001,62415.0,62414.0,0.089146]
[1728446426667,0.001,62415.0,62414.0,0.07275976]
[1728446426956,0.121,62415.0,62414.0,0.009]
[1728446428160,0.201145,62415.0,62414.0,0.009]
[1728446429451,0.201145,62415.0,62414.0,0.05684423]
[1728446429665,0.201145,62415.0,62414.0,0.009]
[1728446433163,0.23423984,62415.0,62414.0,0.009]
[1728446433768,0.23423984,62415.0,62405.0,0.083857]
[1728446433769,0.3608,62414.0,62405.0,0.0037]
[1728446433955,0.4808,62406.0,62395.0,0.0037]
[1728446434264,0.4808,62406.0,62387.0,0.02455029]
[1728446434265,0.080172,62394.0,62387.0,0.02455029]
[1728446434464,0.4808,62388.0,62385.0,0.0303]
[1728446434673,0.4808,62388.0,62385.0,0.05487478]
[1728446434857,0.3608,62388.0,62385.0,0.05487478]
[1728446435059,0.4808,62388.0,62385.0,0.05487478]
[1728446435670,0.4818,62388.0,62385.0,0.06187478]
[1728446436164,0.4818,62388.0,62385.0,0.05487478]
[1728446436470,0.4828,62388.0,62385.0,0.07187478]
[1728446437269,0.4818,62388.0,62385.0,0.06487478]
[1728446437867,0.4818,62388.0,62385.0,0.05987478]
[1728446438261,0.3618,62388.0,62385.0,0.05987478]
[1728446438462,0.3618,62388.0,62385.0,0.05787478]
[1728446438659,0.3618,62388.0,62385.0,0.05487478]
[1728446439065,0.3608,62388.0,62385.0,0.05487478]
[1728446439269,0.3638,62388.0,62385.0,0.05487478]
[1728446439563,0.12,62387.0,62385.0,0.05487478]
[1728446440365,0.12,62387.0,62385.0,0.1027202]
[1728446440570,0.12,62387.0,62385.0,0.05487478]
[1728446441172,0.123,62387.0,62385.0,0.05487478]
[1728446441856,0.126,62387.0,62385.0,0.05487478]
[1728446443659,0.123,62387.0,62385.0,0.05487478]
[1728446443860,0.126,62387.0,62385.0,0.05487478]
[1728446444059,0.126,62387.0,62385.0,0.02457478]
[1728446444261,0.126,62387.0,62380.0,0.04784542]
[1728446444456,0.3608,62382.0,62380.0,0.04784542]
[1728446444663,0.3608,62382.0,62379.0,0.11084542]
[1728446445065,0.3608,62382.0,62380.0,0.04784542]
[1728446445276,0.30463007,62382.0,62379.0,0.08753723]
[1728446445570,0.30463007,62382.0,62380.0,0.002]
[1728446446362,0.30463007,62382.0,62379.0,0.08753723]
[1728446446564,0.30463007,62382.0,62379.0,0.09053723]
[1728446447867,0.30463007,62382.0,62380.0,0.002]
[1728446448367,0.30463007,62382.0,62380.0,0.001]
[1728446448672,0.12,62383.0,62379.0,0.06953723]
[1728446448866,0.12,62383.0,62379.0,0.06853723]
[1728446449871,0.12,62380.0,62379.0,0.06953723]
[1728446450766,0.12,62380.0,62379.0,0.07053723]
[1728446451975,0.12,62380.0,62379.0,0.06953723]
[1728446452370,0.12,62380.0,62379.0,0.06853723]
[1728446455565,0.12,62380.0,62379.0,0.11638265]
[1728446456579,0.12,62380.0,62379.0,0.02453723]
[1728446456774,0.12,62380.0,62377.0,0.00240475]
[1728446457079,0.12,62380.0,62377.0,0.06616451]
[1728446457283,0.121,62380.0,62377.0,0.06616451]
[1728446457471,0.121,62380.0,62378.0,0.06375976]
[1728446457667,0.12,62380.0,62378.0,0.06375976]
[1728446457873,0.123,62380.0,62378.0,0.06375976]
[1728446458382,0.121,62380.0,62377.0,0.09107906]
[1728446458571,0.121,62380.0,62379.0,0.06375976]
[1728446458572,0.12,62380.0,62379.0,0.06375976]
[1728446458878,0.12,62380.0,62377.0,0.0273193]
[1728446458879,0.121,62380.0,62378.0,0.06375976]
[1728446459275,0.121,62380.0,62379.0,0.06375976]
[1728446459473,0.12,62380.0,62377.0,0.0273193]
[1728446459675,0.12,62380.0,62377.0,0.1075123]
[1728446460177,0.121,62380.0,62377.0,0.10510755]
[1728446460566,0.12,62380.0,62377.0,0.18475454]
[1728446461575,0.12,62380.0,62379.0,0.07964699]
[1728446461774,0.122,62380.0,62379.0,0.18983497]
[1728446462179,0.122,62380.0,62379.0,0.11018798]
[1728446462580,0.3608,62381.0,62379.0,0.11018798]
[1728446462783,0.3608,62381.0,62380.0,0.11018798]
[1728446464084,0.3638,62381.0,62380.0,0.24181289]
[1728446464479,0.3638,62381.0,62380.0,0.11018798]
[1728446464775,0.3638,62381.0,62380.0,0.24185414]
[1728446464984,0.3668,62381.0,62380.0,0.24185414]
[1728446466185,0.446988,62381.0,62380.0,0.24185414]
[1728446466381,0.446988,62381.0,62380.0,0.11018798]
[1728446466790,0.446988,62381.0,62380.0,0.20607584]
[1728446469294,0.3668,62381.0,62380.0,0.20607584]
[1728446469594,0.3668,62381.0,62380.0,0.11018798]